bitfinex/quotes_BTCUSD_20241229
["timestamp","ask_amount","ask_price","bid_price","bid_amount"]
[1735463807698,1.550674,95283.0,95279.0,0.0531739]
[1735463808020,1.550674,95283.0,95279.0,0.0521739]
[1735463808221,1.550674,95283.0,95279.0,0.0531739]
[1735463809566,1.487404,95283.0,95279.0,0.0531739]
[1735463809755,1.438938,95283.0,95279.0,0.0531739]
[1735463809925,1.156042,95282.0,95279.0,0.0531739]
[1735463810124,1.440951,95283.0,95279.0,0.0531739]
[1735463810371,1.429306,95283.0,95279.0,0.0531739]
[1735463810963,1.429306,95283.0,95279.0,0.0521739]
[1735463811409,1.429306,95283.0,95279.0,0.0531739]
[1735463812005,1.40409,95283.0,95279.0,0.0531739]
[1735463812155,1.218441,95283.0,95279.0,0.0531739]
[1735463812339,1.246534,95283.0,95279.0,0.0521739]
[1735463812744,1.246534,95283.0,95279.0,0.0531739]
[1735463816345,0.991651,95282.0,95279.0,0.0531739]
[1735463816554,8.54e-05,95284.0,95279.0,0.0531739]
[1735463816555,0.949203,95281.0,95279.0,0.0531739]
[1735463816767,1.277527,95283.0,95279.0,0.0531739]
[1735463817339,1.277527,95283.0,95279.0,0.0511739]
[1735463817503,1.277527,95283.0,95279.0,0.0501739]
[1735463817885,1.277527,95283.0,95279.0,0.0541739]
[1735463818165,1.277527,95283.0,95279.0,0.0501739]
[1735463818657,1.277527,95283.0,95279.0,0.0511739]
[1735463819021,1.277527,95283.0,95279.0,0.0501739]
[1735463819242,1.277527,95283.0,95279.0,0.0521739]
[1735463819458,1.277527,95283.0,95279.0,0.0501739]
[1735463819862,1.277527,95283.0,95279.0,0.0531739]
[1735463820681,1.277527,95283.0,95279.0,0.0541739]
[1735463820808,0.18933098,95282.0,95279.0,0.0541739]
[1735463821011,1.612484,95281.0,95279.0,0.0541739]
[1735463821234,1.601756,95281.0,95279.0,0.0541739]
[1735463821632,0.1050356,95280.0,95279.0,0.0031708]
[1735463821835,3.9630606,95280.0,95279.0,0.0031708]
[1735463822042,3.504705,95280.0,95279.0,0.0041708]
[1735463822238,3.175448,95280.0,95279.0,0.0011708]
[1735463822480,3.158909,95280.0,95279.0,0.0041708]
[1735463822667,3.074581,95280.0,95279.0,0.0041708]
[1735463822837,3.074581,95280.0,95279.0,0.0011708]
[1735463822838,2.933196,95280.0,95279.0,0.0011708]
[1735463823047,2.933196,95280.0,95279.0,0.0051708]
[1735463823356,2.651359,95280.0,95279.0,0.0041708]
[1735463823729,2.651359,95280.0,95279.0,0.0061708]
[1735463823937,2.651359,95280.0,95279.0,0.0021708]
[1735463824163,2.652359,95280.0,95279.0,0.0001708]
[1735463824536,2.653359,95280.0,95279.0,0.0001708]
[1735463825054,2.652359,95280.0,95279.0,0.0001708]
[1735463825585,2.654359,95280.0,95279.0,0.0001708]
[1735463825784,2.7253336,95280.0,95279.0,0.0001708]
[1735463826123,2.6067786,95280.0,95279.0,0.0001708]
[1735463826326,2.6077786,95280.0,95279.0,0.0001708]
[1735463826536,2.534804,95280.0,95279.0,0.0001708]
[1735463826973,2.533804,95280.0,95279.0,0.0001708]
[1735463827539,2.534804,95280.0,95279.0,0.0001708]
[1735463827914,2.453604,95280.0,95279.0,0.0001708]
[1735463828099,2.54036797,95280.0,95279.0,0.0001708]
[1735463828677,2.453604,95280.0,95279.0,0.0001708]
[1735463832792,2.453604,95280.0,95268.0,0.06085124]
[1735463832990,2.58091828,95279.0,95268.0,0.06085124]
[1735463833169,2.522424,95278.0,95260.0,0.0473]
[1735463833365,0.00104928,95277.0,95260.0,0.0473]
[1735463833733,2.397198,95276.0,95260.0,0.0473]
[1735463833890,0.00104928,95275.0,95260.0,0.0473]
[1735463834084,2.434865,95274.0,95260.0,0.0473]
[1735463834264,0.00104928,95273.0,95260.0,0.0473]
[1735463834679,2.26202,95272.0,95260.0,0.0473]
[1735463834875,0.00104928,95271.0,95260.0,0.0473]
[1735463835174,1.839291,95270.0,95260.0,0.04419576]
[1735463835376,2.368497,95273.0,95260.0,0.04419576]
[1735463835619,0.00104928,95272.0,95260.0,0.04419576]
[1735463835814,1.894792,95271.0,95260.0,0.04419576]
[1735463836069,2.36534,95273.0,95261.0,0.0808]
[1735463836232,0.00104928,95272.0,95261.0,0.0808]
[1735463836432,2.43691328,95274.0,95261.0,0.08086922]
[1735463836649,2.36638928,95273.0,95261.0,0.08086922]
[1735463836881,2.263019,95272.0,95261.0,0.08086922]
[1735463837184,0.00104928,95271.0,95261.0,0.08086922]
[1735463837399,1.847779,95270.0,95261.0,0.08186922]
[1735463838213,2.480341,95275.0,95261.0,0.08186922]
[1735463838385,0.00104928,95274.0,95261.0,0.06128622]
[1735463838611,2.344062,95273.0,95261.0,0.06128622]
[1735463838747,0.00104928,95272.0,95261.0,0.06128622]
[1735463838950,1.89459,95271.0,95261.0,0.06128622]
[1735463839357,2.556972,95276.0,95261.0,0.06328622]
[1735463839582,0.00104928,95275.0,95261.0,0.06028622]
[1735463839739,2.568085,95274.0,95261.0,0.06328622]
[1735463839941,0.00104928,95273.0,95261.0,0.06428622]
[1735463840193,2.328441,95272.0,95261.0,0.06128622]
[1735463840393,0.00104928,95271.0,95261.0,0.06028622]
[1735463840569,1.86634328,95271.0,95261.0,0.06028622]
[1735463840777,1.721634,95270.0,95261.0,0.06028622]
[1735463841187,3.05595712,95276.0,95261.0,0.06028622]
[1735463841382,1.420965,95269.0,95261.0,0.06228622]
[1735463841637,2.764588,95275.0,95261.0,0.06128622]
[1735463841839,2.37366228,95274.0,95261.0,0.06128622]
[1735463842042,2.195924,95273.0,95261.0,0.06428622]
[1735463842263,0.00104928,95272.0,95261.0,0.06128622]
[1735463842434,1.996251,95271.0,95261.0,0.06428622]
[1735463842660,1.932819,95270.0,95261.0,0.06428622]
[1735463842862,0.0001708,95274.0,95261.0,0.06028622]
[1735463843017,2.372386,95273.0,95261.0,0.06228622]
[1735463843212,0.00104928,95272.0,95261.0,0.06228622]
[1735463843435,0.00104928,95272.0,95261.0,0.06028622]
[1735463843436,2.27302428,95272.0,95261.0,0.06028622]
[1735463843714,1.96975,95271.0,95261.0,0.06128622]
[1735463843902,1.88852,95271.0,95261.0,0.06128622]
[1735463844089,2.280904,95273.0,95261.0,0.06128622]
[1735463844425,0.00104928,95272.0,95261.0,0.06028622]
[1735463844723,1.888349,95271.0,95261.0,0.06428622]
[1735463845229,2.354958,95273.0,95261.0,0.06128622]
[1735463845415,0.00104928,95272.0,95261.0,0.06128622]
[1735463845617,2.062232,95271.0,95261.0,0.06328622]
[1735463845919,0.0164709,95270.0,95261.0,0.06128622]
[1735463846125,1.9343259,95270.0,95261.0,0.06328622]
[1735463846304,1.547823,95269.0,95261.0,0.06128622]
[1735463846623,1.547823,95269.0,95261.0,0.06428622]
[1735463846842,1.547823,95269.0,95261.0,0.06328622]
[1735463847318,1.547823,95269.0,95261.0,0.06428622]
[1735463847682,1.547823,95269.0,95261.0,0.06328622]
[1735463847878,1.547823,95269.0,95261.0,0.06528622]
[1735463848200,1.547823,95269.0,95261.0,0.06228622]
[1735463848519,1.547823,95269.0,95261.0,0.06528622]
[1735463848724,1.547823,95269.0,95261.0,0.06228622]
[1735463848936,1.547823,95269.0,95261.0,0.06528622]
[1735463849303,1.547823,95269.0,95261.0,0.00506922]
[1735463849538,0.805274,95269.0,95262.0,0.1247]
[1735463849890,1.488878,95269.0,95262.0,0.1247]
[1735463850814,1.488878,95269.0,95262.0,0.1267]
[1735463851250,1.488878,95269.0,95262.0,0.1297]
[1735463852648,0.1050356,95268.0,95262.0,0.005]
[1735463852864,3.375712,95267.0,95262.0,0.005]
[1735463853060,0.00104928,95266.0,95262.0,0.005]
[1735463853289,2.715463,95265.0,95262.0,0.005]
[1735463853462,2.518506,95264.0,95262.0,0.003]
[1735463853667,2.572849,95267.0,95262.0,0.003]
[1735463853873,0.00104928,95266.0,95262.0,0.002]
[1735463854167,2.423084,95265.0,95262.0,0.005]
[1735463854360,2.423084,95265.0,95262.0,0.003]
[1735463854568,2.651907,95267.0,95262.0,0.003]
[1735463854842,0.1050356,95266.0,95262.0,0.006]
[1735463855042,2.679374,95265.0,95262.0,0.006]
[1735463855219,2.527782,95264.0,95262.0,0.003]
[1735463855371,2.683094,95265.0,95262.0,0.006]
[1735463855578,2.529092,95264.0,95262.0,0.003]
[1735463855781,0.10398632,95263.0,95261.0,6.922e-05]
[1735463856003,0.10398632,95263.0,95262.0,0.003]
[1735463856202,0.10398632,95263.0,95262.0,0.005]
[1735463856380,2.65406728,95265.0,95262.0,0.005]
[1735463856577,0.01647136,95263.0,95262.0,0.003]
[1735463856790,2.03833036,95263.0,95262.0,0.003]
[1735463857158,2.13406936,95263.0,95262.0,0.003]
[1735463857366,0.01647136,95263.0,95262.0,0.003]
[1735463857564,2.13406936,95263.0,95262.0,0.003]
[1735463857771,2.23805568,95263.0,95262.0,0.003]
[1735463857988,2.14231668,95263.0,95262.0,0.006]
[1735463858141,2.03833036,95263.0,95262.0,0.006]
[1735463858320,2.03833036,95263.0,95262.0,0.003]
[1735463858500,2.03933036,95263.0,95262.0,0.006]
[1735463859757,2.03933036,95263.0,95262.0,0.003]
[1735463859954,1.89694636,95263.0,95262.0,0.005]
[1735463860158,0.74085336,95263.0,95262.0,0.005]
[1735463860565,0.74085336,95263.0,95262.0,0.003]
[1735463860743,0.73985336,95263.0,95262.0,0.002]
[1735463860948,0.74085336,95263.0,95262.0,0.005]
[1735463861438,0.73985336,95263.0,95262.0,0.002]
[1735463861655,0.74085336,95263.0,95262.0,0.005]
[1735463862040,0.74085336,95263.0,95262.0,0.003]
[1735463862379,0.74085336,95263.0,95262.0,0.005]
[1735463863466,0.724382,95263.0,95262.0,0.005]
[1735463864981,0.001,95263.0,95262.0,0.005]
[1735463865379,1.141354,95263.0,95262.0,0.005]
[1735463865588,1.638458,95263.0,95262.0,0.005]
[1735463865791,1.714573,95263.0,95262.0,0.005]
[1735463865987,1.548925,95263.0,95262.0,0.005]
[1735463866397,1.53705,95263.0,95262.0,0.005]
[1735463867103,1.516453,95263.0,95262.0,0.005]
[1735463868144,1.53292438,95263.0,95262.0,0.005]
[1735463868748,1.50374838,95263.0,95262.0,0.005]
[1735463873331,1.487277,95263.0,95262.0,0.005]
[1735463874083,1.67640912,95263.0,95262.0,0.005]
[1735463876660,1.6928805,95263.0,95262.0,0.005]
[1735463876862,1.50374838,95263.0,95262.0,0.005]
[1735463877815,1.6928805,95263.0,95262.0,0.005]
[1735463878559,1.50374838,95263.0,95262.0,0.005]
[1735463879455,1.50274838,95263.0,95262.0,0.002]
[1735463879607,1.50274838,95263.0,95261.0,0.00015462]
[1735463879943,1.654715,95262.0,95261.0,0.00015462]
[1735463881501,1.84384712,95262.0,95261.0,0.00015462]
[1735463881863,1.84484712,95262.0,95261.0,0.00815462]
[1735463882063,1.84484712,95262.0,95261.0,0.01115462]
[1735463882536,1.655715,95262.0,95261.0,0.01115462]
[1735463883988,1.84484712,95262.0,95261.0,0.01115462]
[1735463884658,1.655715,95262.0,95261.0,0.01115462]
[1735463885668,1.84484712,95262.0,95261.0,0.01115462]
[1735463887972,1.86131855,95262.0,95261.0,0.01115462]
[1735463888662,1.67218643,95262.0,95261.0,0.01115462]
[1735463891242,1.58767043,95262.0,95261.0,0.01115462]
[1735463893404,1.571199,95262.0,95261.0,0.01115462]
[1735463893607,1.5713698,95262.0,95261.0,0.01115462]
[1735463896585,1.58784123,95262.0,95261.0,0.01115462]
[1735463897523,1.82425638,95262.0,95261.0,0.01115462]
[1735463900922,1.58784123,95262.0,95261.0,0.01115462]
[1735463902841,1.69182755,95262.0,95261.0,0.01115462]
[1735463903419,1.67535612,95262.0,95261.0,0.01115462]
[1735463904001,1.5713698,95262.0,95261.0,0.01115462]
[1735463905058,1.38563331,95262.0,95261.0,0.01115462]
[1735463905754,1.5554408,95262.0,95261.0,0.01115462]
[1735463905954,1.4586308,95262.0,95261.0,0.01115462]
[1735463906784,1.47510286,95262.0,95261.0,0.01115462]
[1735463913427,1.4586308,95262.0,95261.0,0.01115462]
[1735463915956,1.6953395,95262.0,95261.0,0.01115462]
[1735463916312,1.6953395,95262.0,95261.0,0.00815462]
[1735463916486,1.6953395,95262.0,95261.0,0.01115462]
[1735463916695,1.71181156,95262.0,95261.0,0.00315462]
[1735463916902,1.71181156,95262.0,95261.0,0.00015462]
[1735463917104,1.71281156,95262.0,95261.0,0.00815462]
[1735463917303,1.71281156,95262.0,95261.0,0.00215462]
[1735463917708,1.71281156,95262.0,95261.0,0.00715462]
[1735463920127,1.47610286,95262.0,95261.0,0.00715462]
[1735463922422,1.71273741,95262.0,95261.0,0.00715462]
[1735463923396,1.69626535,95262.0,95261.0,0.00715462]
[1735463924642,1.49278735,95262.0,95261.0,0.00715462]
[1735463924869,1.48104235,95262.0,95261.0,0.00715462]
[1735463926052,1.48004235,95262.0,95261.0,0.00715462]
[1735463926357,1.48004235,95262.0,95261.0,0.00015462]
[1735463926549,1.48004235,95262.0,95261.0,0.00415462]
[1735463926750,1.49651441,95262.0,95261.0,0.00515462]
[1735463931031,1.49651441,95262.0,95261.0,0.00415462]
[1735463931245,1.25987986,95262.0,95261.0,0.00415462]
[1735463931747,1.25987986,95262.0,95261.0,0.00015462]
[1735463932410,1.25987986,95262.0,95261.0,0.00115462]
[1735463932877,1.25987986,95262.0,95261.0,0.00415462]
[1735463933468,1.2434078,95262.0,95261.0,0.00415462]
[1735463936538,1.25987987,95262.0,95261.0,0.00415462]
[1735463938338,1.49651442,95262.0,95261.0,0.00415462]
[1735463939248,1.25987987,95262.0,95261.0,0.00415462]
[1735463939968,1.20612587,95262.0,95261.0,0.00415462]
[1735463943437,1.1896538,95262.0,95261.0,0.00415462]
[1735463944467,1.42628835,95262.0,95261.0,0.00415462]
[1735463945871,1.1896538,95262.0,95261.0,0.00315462]
[1735463946640,1.20612605,95262.0,95261.0,0.00415462]
[1735463949659,1.4427606,95262.0,95261.0,0.00415462]
[1735463951705,1.20612605,95262.0,95261.0,0.00415462]
[1735463953359,1.1896538,95262.0,95261.0,0.00415462]
[1735463953761,1.42628835,95262.0,95261.0,0.00415462]
[1735463954291,0.23680535,95262.0,95261.0,0.00415462]
[1735463954702,2.03312835,95262.0,95261.0,0.00415462]
[1735463955342,2.01293735,95262.0,95261.0,0.00415462]
[1735463956013,1.74585135,95262.0,95261.0,0.00415462]
[1735463956403,1.74944345,95262.0,95261.0,0.00415462]
[1735463956955,1.68390345,95262.0,95261.0,0.00415462]
[1735463957296,1.68390345,95262.0,95261.0,0.08155462]
[1735463957297,0.25327745,95262.0,95261.0,0.08155462]
[1735463957512,0.25327745,95262.0,95261.0,0.13635776]
[1735463958042,0.0166429,95262.0,95261.0,0.13535776]
[1735463958499,0.0166429,95262.0,95261.0,0.13635776]
[1735463958887,0.0166429,95262.0,95261.0,0.13535776]
[1735463959086,0.0166429,95262.0,95261.0,0.13340739]
[1735463959485,0.0166429,95262.0,95261.0,0.13640739]
[1735463959867,0.0166429,95262.0,95261.0,0.13340739]
[1735463960039,0.0176429,95262.0,95261.0,0.14240739]
[1735463960826,0.0176429,95262.0,95261.0,0.14540739]
[1735463963461,0.0011708,95262.0,95261.0,0.14540739]
[1735463964162,0.0011708,95262.0,95261.0,0.13710425]
[1735463966759,0.01764181,95262.0,95261.0,0.13710425]
[1735463966961,0.01764181,95262.0,95261.0,0.13605462]
[1735463968729,0.0011708,95262.0,95261.0,0.13605462]
[1735463970945,0.01764146,95262.0,95261.0,0.13605462]
[1735463972374,0.01764146,95262.0,95261.0,0.13305462]
[1735463972787,0.01664146,95262.0,95261.0,0.12405462]
[1735463973024,0.01664146,95262.0,95261.0,0.13205462]
[1735463973282,0.01664146,95262.0,95261.0,0.12405462]
[1735463973499,0.01664146,95262.0,95261.0,0.13205462]
[1735463973736,0.01664146,95262.0,95261.0,0.13505462]
[1735463973964,0.0001708,95262.0,95261.0,0.13505462]
[1735463974188,0.0001708,95262.0,95261.0,0.13205462]
[1735463974441,0.0001708,95262.0,95261.0,0.13505462]
[1735463977107,0.01664149,95262.0,95261.0,0.13505462]
[1735463983616,0.0001708,95262.0,95261.0,0.13505462]
[1735463986783,0.01664156,95262.0,95261.0,0.13505462]
[1735463993134,0.01664156,95262.0,95261.0,0.01115462]
[1735463996073,0.01664156,95262.0,95261.0,0.14150408]
[1735463996272,0.01664156,95262.0,95261.0,0.15569719]
[1735463996470,0.0001708,95262.0,95261.0,0.15569719]
[1735463999438,0.0166415,95262.0,95261.0,0.15569719]
[1735463999842,0.0166415,95262.0,95261.0,0.14150408]
[1735464003094,0.0001708,95262.0,95261.0,0.14150408]
[1735464006172,0.0001708,95262.0,95261.0,0.01220408]
[1735464006376,0.01664216,95262.0,95261.0,0.01220408]
[1735464008793,0.0001708,95262.0,95261.0,0.01220408]
[1735464014713,0.01664254,95262.0,95261.0,0.01220408]
[1735464020822,0.0001708,95262.0,95261.0,0.09530408]
[1735464021225,0.0001708,95262.0,95261.0,0.2489904]
[1735464021438,0.01664162,95262.0,95261.0,0.24794094]
[1735464022453,0.01664162,95262.0,95261.0,0.23994094]
[1735464022645,0.01664162,95262.0,95261.0,0.24594094]
[1735464022861,0.01664162,95262.0,95261.0,0.24894094]
[1735464023059,0.01664162,95262.0,95261.0,0.29387773]
[1735464023215,0.01664162,95262.0,95261.0,0.29087773]
[1735464024236,0.01664162,95262.0,95261.0,0.24594094]
[1735464024669,0.01664162,95262.0,95261.0,0.25094094]
[1735464026132,0.0001708,95262.0,95261.0,0.25094094]
[1735464027425,0.0001708,95262.0,95261.0,0.35094094]
[1735464029157,0.0166405,95262.0,95261.0,0.35094094]
[1735464029357,0.0166405,95262.0,95261.0,0.44550554]
[1735464029598,0.0166405,95262.0,95261.0,0.51428538]
[1735464030264,0.0166405,95262.0,95261.0,0.41972078]
[1735464036178,0.0001708,95262.0,95261.0,0.41972078]
[1735464039126,0.01664059,95262.0,95261.0,0.41972078]
[1735464042942,0.01664059,95262.0,95261.0,0.35094094]
[1735464043295,0.0001708,95262.0,95261.0,0.35094094]
[1735464046687,0.01664037,95262.0,95261.0,0.35094094]
[1735464053426,0.0001708,95262.0,95261.0,0.35094094]
[1735464054291,0.0001708,95262.0,95261.0,0.45094094]
[1735464054882,0.0001708,95262.0,95261.0,0.45883553]
[1735464055099,0.0001708,95262.0,95261.0,0.51014865]
[1735464055529,0.0001708,95262.0,95261.0,0.49614865]
[1735464055751,0.0001708,95262.0,95261.0,1.09510573]
[1735464055955,0.0001708,95262.0,95261.0,1.05452842]
[1735464056152,0.0001708,95262.0,95261.0,1.05052842]
[1735464056354,0.0001708,95262.0,95261.0,1.05952842]
[1735464056554,0.0011708,95262.0,95261.0,1.06652842]
[1735464056782,0.01763873,95262.0,95261.0,1.01907825]
[1735464057425,0.01763873,95262.0,95261.0,1.55847825]
[1735464059052,0.01763873,95262.0,95261.0,1.36924579]
[1735464060133,0.01763873,95262.0,95261.0,1.55847825]
[1735464061778,0.01763873,95262.0,95261.0,1.55847249]
[1735464063668,0.0011708,95262.0,95261.0,1.55847249]
[1735464064611,0.0001708,95262.0,95261.0,1.55147249]
[1735464064817,0.0011708,95262.0,95261.0,1.55847249]
[1735464064970,0.0011708,95262.0,95261.0,1.54947249]
[1735464065177,0.0001708,95262.0,95261.0,1.54247249]
[1735464065366,0.0001708,95262.0,95261.0,1.55147249]
[1735464065567,0.0011708,95262.0,95261.0,1.54947249]
[1735464065773,0.0011708,95262.0,95261.0,1.36024003]
[1735464065943,0.0011708,95262.0,95261.0,1.36924003]
[1735464066768,0.01763846,95262.0,95261.0,1.36924003]
[1735464069619,0.01763846,95262.0,95261.0,1.3613512]
[1735464070667,0.01763846,95262.0,95261.0,1.36923803]
[1735464072861,0.01763846,95262.0,95261.0,1.3613512]
[1735464073063,0.01763846,95262.0,95261.0,1.34161539]
[1735464073280,0.0011708,95262.0,95261.0,1.24161539]
[1735464073450,0.0011708,95262.0,95261.0,1.34161539]
[1735464073702,0.0011708,95262.0,95261.0,0.99234094]
[1735464076488,0.01763923,95262.0,95261.0,0.99234094]
[1735464077997,0.01763923,95262.0,95261.0,1.01207026]
[1735464078152,0.01763923,95262.0,95261.0,0.92897026]
[1735464079502,0.01763923,95262.0,95261.0,0.87927026]
[1735464081009,0.01763923,95262.0,95261.0,1.02124782]
[1735464081431,0.01763923,95262.0,95261.0,0.38184782]
[1735464082278,0.05908233,95296.0,95262.0,0.1]
[1735464082415,2.237591,95283.0,95263.0,0.10398632]
[1735464082598,2.164838,95282.0,95263.0,0.10398632]
[1735464082949,3.99883,95294.0,95265.0,0.1]
[1735464083151,4.001354,95294.0,95266.0,0.10398632]
[1735464083577,3.654955,95293.0,95266.0,0.10398632]
[1735464083820,0.02959731,95295.0,95266.0,0.10398632]
[1735464083821,3.748861,95294.0,95266.0,0.10398632]
[1735464084013,0.10398632,95293.0,95266.0,0.10398632]
[1735464084335,3.585091,95292.0,95266.0,0.10398632]
[1735464084772,3.970829,95298.0,95266.0,0.10398632]
[1735464085000,3.921931,95298.0,95266.0,0.10398632]
[1735464085341,0.0773,95285.0,95266.0,0.10398632]
[1735464085538,2.540866,95284.0,95266.0,0.10398632]
[1735464085817,2.540866,95284.0,95266.0,0.10498632]
[1735464086083,2.427841,95284.0,95267.0,0.1]
[1735464086284,0.642996,95283.0,95268.0,0.10398632]
[1735464087575,0.59074,95284.0,95270.0,0.10398632]
[1735464087785,0.63425,95284.0,95270.0,0.10398632]
[1735464088141,0.602385,95284.0,95270.0,0.10398632]
[1735464088344,0.279139,95283.0,95270.0,0.10398632]
[1735464088550,1.159883,95284.0,95270.0,0.10398632]
[1735464088762,0.00176652,95283.0,95270.0,0.10698632]
[1735464088944,0.0773,95285.0,95270.0,0.10698632]
[1735464089152,0.01646819,95280.0,95271.0,0.04522863]
[1735464089357,0.371021,95279.0,95272.0,0.10398632]
[1735464089559,0.01646819,95280.0,95273.0,0.0827]
[1735464089779,0.01646819,95280.0,95274.0,0.10398632]
[1735464089977,0.01646819,95280.0,95274.0,0.10457727]
[1735464090190,0.01646819,95280.0,95275.0,0.04355059]
[1735464090431,0.01646819,95280.0,95276.0,0.10457725]
[1735464092100,0.01646819,95280.0,95276.0,0.10757725]
[1735464092322,0.01646819,95280.0,95276.0,0.10457725]
[1735464092730,0.01646819,95280.0,95276.0,0.10857725]
[1735464092886,0.01646819,95280.0,95276.0,0.16106003]
[1735464093086,0.01646819,95280.0,95277.0,0.00104936]
[1735464093313,0.01646819,95280.0,95278.0,0.10398632]
[1735464093538,0.0772,95297.0,95279.0,0.00104936]
[1735464093742,2.360314,95296.0,95280.0,0.10398632]
[1735464093940,2.360314,95296.0,95281.0,0.00104935]
[1735464094179,2.360314,95296.0,95282.0,0.00104935]
[1735464094682,2.347875,95295.0,95282.0,0.00104935]
[1735464094891,2.361279,95296.0,95282.0,0.00104935]
[1735464096540,0.0164673,95293.0,95283.0,0.10398632]
[1735464096695,1.099274,95292.0,95284.0,0.08374932]
[1735464096906,1.099274,95292.0,95285.0,0.10398632]
[1735464097224,1.099274,95292.0,95286.0,0.00104929]
[1735464097401,1.099274,95292.0,95287.0,0.00104927]
[1735464098747,1.099274,95292.0,95287.0,0.00304927]
[1735464099763,1.099274,95292.0,95287.0,0.01104927]
[1735464101947,1.171254,95292.0,95287.0,0.01104927]
[1735464103616,1.623374,95296.0,95287.0,0.01104927]
[1735464103818,1.623374,95296.0,95288.0,0.00104932]
[1735464104016,1.611729,95296.0,95288.0,0.00104932]
[1735464104226,1.54525,95295.0,95288.0,0.00104932]
[1735464104426,1.623374,95296.0,95288.0,0.00104932]
[1735464104736,1.335777,95296.0,95288.0,0.00104932]
[1735464104957,1.612644,95296.0,95288.0,0.00104932]
[1735464106154,1.52297,95296.0,95288.0,0.00704932]
[1735464106585,0.01646705,95295.0,95288.0,0.00804932]
[1735464106743,1.494587,95294.0,95288.0,0.00804932]
[1735464107570,1.272768,95293.0,95288.0,0.00804932]
[1735464107774,1.493661,95294.0,95288.0,0.006]
[1735464107998,1.482016,95294.0,95288.0,0.0070493]
[1735464108204,1.482016,95294.0,95288.0,0.0030493]
[1735464108591,0.61957,95293.0,95289.0,0.10503566]
[1735464108851,0.51492,95294.0,95289.0,0.10503566]
[1735464108982,0.692458,95294.0,95289.0,0.10503566]
[1735464109584,0.594801,95293.0,95289.0,0.10503566]
[1735464109781,0.681622,95294.0,95289.0,0.10503566]
[1735464109987,0.877782,95294.0,95289.0,0.13170923]
[1735464110392,0.877782,95294.0,95289.0,0.11203566]
[1735464111198,0.877782,95294.0,95289.0,0.11403566]
[1735464111563,0.877782,95294.0,95289.0,0.10703566]
[1735464111694,0.877782,95294.0,95289.0,0.11503566]
[1735464112384,0.877782,95294.0,95289.0,0.12203566]
[1735464113555,2.252697,95295.0,95289.0,0.12203566]
[1735464114086,1.997137,95294.0,95289.0,0.12203566]
[1735464114234,2.249194,95295.0,95289.0,0.12203566]
[1735464114432,2.069194,95295.0,95289.0,0.12203566]
[1735464114614,1.911527,95294.0,95289.0,0.10503566]
[1735464114953,1.911527,95295.0,95289.0,0.11403566]
[1735464115159,2.094683,95295.0,95289.0,0.11403566]
[1735464115300,1.948072,95295.0,95289.0,0.11403566]
[1735464115503,1.948072,95295.0,95289.0,0.11203566]
[1735464115780,1.935916,95295.0,95289.0,0.11203566]
[1735464116391,0.01646626,95294.0,95289.0,0.11203566]
[1735464116596,1.97804,95293.0,95289.0,0.11203566]
[1735464116794,1.97804,95293.0,95289.0,0.11098632]
[1735464116995,1.97804,95293.0,95289.0,0.11298632]
[1735464117488,1.97804,95293.0,95289.0,0.11098632]
[1735464117813,1.801196,95293.0,95289.0,0.11098632]
[1735464118015,1.388906,95292.0,95289.0,0.10598632]
[1735464118157,1.801196,95293.0,95289.0,0.10598632]
[1735464118371,1.801196,95293.0,95289.0,0.11298632]
[1735464118708,1.801196,95293.0,95289.0,0.10598632]
[1735464118933,1.801196,95293.0,95289.0,0.11398632]
[1735464119649,1.779612,95293.0,95289.0,0.11398632]
[1735464121339,1.48631,95293.0,95289.0,0.11398632]
[1735464121546,1.074683,95292.0,95289.0,0.11398632]
[1735464121907,1.700359,95293.0,95289.0,0.11398632]
[1735464122214,1.700359,95293.0,95289.0,0.10598632]
[1735464122418,1.804842,95295.0,95289.0,0.11498632]
[1735464123081,1.804842,95295.0,95289.0,0.12198632]
[1735464123287,1.804842,95295.0,95289.0,0.02]
[1735464123739,1.804842,95295.0,95289.0,0.018]
[1735464124066,1.804842,95295.0,95289.0,0.023]
[1735464124272,1.804842,95295.0,95289.0,0.005]
[1735464124422,1.804842,95295.0,95289.0,0.014]
[1735464125323,0.01646641,95294.0,95289.0,0.014]
[1735464125568,1.7865,95293.0,95289.0,0.014]
[1735464126291,1.7865,95293.0,95289.0,0.009]
[1735464126505,1.7865,95293.0,95289.0,0.014]
[1735464127117,1.7865,95293.0,95289.0,0.009]
[1735464127235,1.7865,95293.0,95289.0,0.014]
[1735464127457,1.695243,95293.0,95289.0,0.005]
[1735464127658,1.875404,95293.0,95289.0,0.014]
[1735464128282,1.875404,95293.0,95289.0,0.023]
[1735464128520,1.875404,95293.0,95289.0,0.014]
[1735464129083,1.875404,95293.0,95289.0,0.009]
[1735464129284,1.875404,95293.0,95289.0,0.021]
[1735464130003,1.875404,95293.0,95289.0,0.018]
[1735464130480,1.875404,95293.0,95289.0,0.009]
[1735464130631,1.875404,95293.0,95289.0,0.003]
[1735464130799,1.875404,95293.0,95289.0,0.012]
[1735464131984,1.875404,95293.0,95289.0,0.0121708]
[1735464132544,1.875404,95293.0,95289.0,0.0091708]
[1735464132916,1.875404,95293.0,95289.0,0.0121708]
[1735464133139,1.845572,95293.0,95289.0,0.0121708]
[1735464136218,0.00510422,95292.0,95289.0,0.0121708]
[1735464136380,1.41038,95291.0,95289.0,0.0121708]
[1735464136852,0.00259262,95290.0,95289.0,0.0121708]
[1735464137042,1.15711162,95290.0,95289.0,0.0121708]
[1735464137270,0.00259262,95290.0,95289.0,0.0001708]
[1735464137406,1.15701962,95290.0,95289.0,0.0121708]
[1735464137605,1.12601062,95290.0,95289.0,0.0121708]
[1735464137822,1.12601062,95290.0,95289.0,0.0031708]
[1735464138050,1.12601062,95290.0,95289.0,0.0121708]
[1735464139212,1.12601062,95290.0,95289.0,0.0091708]
[1735464139894,1.12853183,95290.0,95289.0,0.0121708]
[1735464145043,1.06603383,95290.0,95289.0,0.0121708]
[1735464145928,1.03024883,95290.0,95289.0,0.0121708]
[1735464146530,0.87586983,95290.0,95289.0,0.0121708]
[1735464146731,0.89233643,95290.0,95289.0,0.0121708]
[1735464153622,0.87586983,95290.0,95289.0,0.0121708]
[1735464154509,0.85572883,95290.0,95289.0,0.0121708]
[1735464156852,0.87219543,95290.0,95289.0,0.0121708]
[1735464167417,0.85572883,95290.0,95289.0,0.0121708]
[1735464168203,0.85572883,95290.0,95289.0,0.0091708]
[1735464168404,0.85572883,95290.0,95289.0,0.0021708]
[1735464168606,0.85572883,95290.0,95289.0,0.0111708]